bitfinex-derivatives/quotes_SOLF0:USTF0_20250319
["timestamp","ask_amount","ask_price","bid_price","bid_amount"]
[1742388609815,7.92993244,127.04,127.02,0.05417608]
[1742388610707,7.92993244,127.04,127.02,7.92747608]
[1742388611304,0.05753244,127.04,127.03,7.8727]
[1742388613910,3.244e-05,127.04,127.03,7.8727]
[1742388614712,2.147,127.11,127.07,7.8702]
[1742388614916,2.3009,127.12,127.08,32.12]
[1742388615816,7.869,127.09,127.08,32.12]
[1742388616818,7.8687,127.1,127.08,32.12]
[1742388617418,7.92470151,127.11,127.08,32.12]
[1742388617614,0.05660151,127.11,127.08,52.20222818]
[1742388618421,0.05660151,127.11,127.08,60.07182818]
[1742388618621,0.05660151,127.11,127.08,52.20222818]
[1742388618816,0.05660151,127.11,127.1,20.08222818]
[1742388621418,0.05660151,127.11,127.08,54.32632818]
[1742388621622,0.05660151,127.11,127.08,22.20632818]
[1742388621825,0.05660151,127.11,127.09,32.1]
[1742388622122,0.05660151,127.11,127.1,32.1]
[1742388622322,0.05660151,127.11,127.09,32.1]
[1742388622726,7.8684,127.1,127.09,32.1]
[1742388627931,7.92470151,127.11,127.09,32.1]
[1742388628130,7.92470151,127.11,127.09,39.969]
[1742388628331,7.92470151,127.11,127.09,32.1]
[1742388628827,0.05660151,127.11,127.09,39.9686]
[1742388629522,7.92480151,127.11,127.09,32.1]
[1742388630129,7.92480151,127.11,127.09,39.9687]
[1742388630327,7.8684,127.1,127.09,32.1]
[1742388630926,0.05660151,127.11,127.09,32.1]
[1742388631327,0.05660151,127.11,127.09,39.9685]
[1742388632525,7.92460151,127.11,127.09,39.9685]
[1742388633131,7.92460151,127.11,127.09,32.1]
[1742388634031,7.92460151,127.11,127.09,39.9687]
[1742388634330,0.05660151,127.11,127.09,39.9687]
[1742388634922,0.05660151,127.11,127.1,7.8684]
[1742388635226,0.05660151,127.11,127.1,20.6993614]
[1742388635427,0.05660151,127.11,127.1,12.8309614]
[1742388635832,0.05660151,127.11,127.1,20.6993614]
[1742388636835,7.8662,127.14,127.11,7.8672]
[1742388637026,7.8662,127.14,127.12,44.8909614]
[1742388637228,7.8656,127.15,127.13,12.8309614]
[1742388637733,7.8648,127.16,127.13,12.8309614]
[1742388637928,0.0594864,127.15,127.13,12.88934937]
[1742388638435,0.0594864,127.15,127.14,7.8659]
[1742388638730,0.0594864,127.15,127.14,12.8309614]
[1742388639130,0.0594864,127.15,127.13,0.05838797]
[1742388639432,0.0594864,127.15,127.13,7.92478797]
[1742388639828,0.0594864,127.15,127.14,7.8659]
[1742388640029,0.0594864,127.15,127.13,0.05838797]
[1742388641243,7.8659,127.14,127.13,0.05838797]
[1742388643039,7.9250864,127.15,127.13,7.92478797]
[1742388643539,7.9250864,127.15,127.13,0.05838797]
[1742388643740,0.0594864,127.15,127.13,0.05838797]
[1742388644829,7.9250864,127.15,127.13,0.05838797]
[1742388645133,0.0594864,127.15,127.13,0.05838797]
[1742388645838,0.0594864,127.15,127.14,7.8659]
[1742388650040,0.00243927,127.15,127.14,7.8659]
[1742388650940,0.00243927,127.15,127.13,271.37838797]
[1742388651442,0.00243927,127.15,127.13,279.24448797]
[1742388651940,0.00243927,127.15,127.14,7.8659]
[1742388652642,0.00243927,127.15,127.13,279.24458797]
[1742388653542,0.00243927,127.15,127.14,7.8659]
[1742388656340,0.00243927,127.15,127.13,271.37838797]
[1742388656536,0.00243927,127.15,127.14,32.02]
[1742388657035,7.86773927,127.15,127.14,32.02]
[1742388659642,7.86773927,127.15,127.13,0.05838797]
[1742388659643,7.8659,127.14,127.13,0.05838797]
[1742388659843,7.8659,127.14,127.13,32.07838797]
[1742388660346,7.86813927,127.15,127.13,32.07838797]
[1742388660539,0.00243927,127.15,127.13,32.07838797]
[1742388660845,0.00243927,127.15,127.14,7.8659]
[1742388661150,0.00243927,127.15,127.14,20.6871856]
[1742388665945,10.0626,127.2,127.14,12.8212856]
[1742388666145,10.0626,127.2,127.18,12.8212856]
[1742388666344,10.0626,127.2,127.19,32.0]
[1742388667355,22.8838856,127.2,127.19,32.0]
[1742388667541,22.8838856,127.2,127.19,28.5253]
[1742388668850,7.8628,127.19,127.18,0.05746391]
[1742388669049,12.8212856,127.19,127.17,32.0]
[1742388669243,12.8212856,127.18,127.17,32.0]
[1742388669543,12.8212856,127.18,127.14,32.0]
[1742388669744,12.8212856,127.17,127.12,12.8212856]
[1742388669943,7.8656,127.15,127.13,32.0]
[1742388670248,7.8656,127.15,127.13,44.87631438]
[1742388670549,7.9219774,127.16,127.14,12.8212856]
[1742388671249,0.0569774,127.16,127.15,12.8212856]
[1742388672549,7.9216774,127.16,127.14,20.6868856]
[1742388673349,7.8653,127.15,127.14,12.8212856]
[1742388674248,7.9219774,127.16,127.14,12.8212856]
[1742388677355,7.8653,127.15,127.13,52.74251438]
[1742388677652,7.8653,127.15,127.13,44.87631438]
[1742388678044,7.8659,127.14,127.13,44.87631438]
[1742388679558,7.8656,127.15,127.13,44.87631438]
[1742388679853,7.8656,127.15,127.13,52.74281438]
[1742388680048,7.8656,127.15,127.13,44.87631438]
[1742388681159,7.8656,127.15,127.13,52.74281438]
[1742388683658,7.8656,127.15,127.14,12.8212856]
[1742388684060,7.9219774,127.16,127.14,12.8212856]
[1742388684357,0.0569774,127.16,127.15,12.8212856]
[1742388685353,0.0569774,127.16,127.15,20.6865856]
[1742388685750,0.0569774,127.16,127.15,12.8212856]
[1742388687162,0.0569774,127.16,127.15,20.6865856]
[1742388689966,4.3933,127.21,127.18,7.8632]
[1742388690167,7.8625,127.2,127.18,52.6444856]
[1742388690855,7.8621,127.21,127.18,44.7812856]
[1742388691268,7.91359327,127.21,127.19,12.8212856]
[1742388691875,0.05149327,127.21,127.19,20.6838856]
[1742388692073,0.05149327,127.21,127.19,12.8212856]
[1742388692269,0.05149327,127.21,127.18,32.01324006]
[1742388692270,0.05149327,127.21,127.2,12.8212856]
[1742388692672,0.05149327,127.21,127.2,20.6834856]
[1742388692976,0.05149327,127.21,127.2,12.8212856]
[1742388693478,7.91309327,127.21,127.2,12.8212856]
[1742388693775,0.05149327,127.21,127.2,12.8212856]
[1742388694979,0.05149327,127.21,127.2,20.6834856]
[1742388697784,10.62705082,127.27,127.22,7.8609]
[1742388697984,7.8595,127.25,127.23,44.7612856]
[1742388698780,7.91780323,127.25,127.23,44.81284089]
[1742388699182,0.05830323,127.25,127.24,12.8212856]
[1742388699685,0.05830323,127.25,127.24,20.6809856]
[1742388699984,0.05830323,127.25,127.24,12.8212856]
[1742388700279,0.05830323,127.25,127.23,44.81284089]
[1742388701088,7.8597,127.24,127.23,44.81284089]
[1742388702075,0.05830323,127.25,127.23,44.81284089]
[1742388702276,0.05830323,127.25,127.24,12.8212856]
[1742388702785,0.05830323,127.25,127.24,20.6809856]
[1742388703786,0.05830323,127.25,127.24,12.8212856]
[1742388704985,0.05830323,127.25,127.24,20.6809856]
[1742388710093,0.05830323,127.25,127.24,12.8212856]
[1742388710287,0.05830323,127.25,127.23,0.05155529]
[1742388710492,0.05830323,127.25,127.24,31.92]
[1742388710692,7.91740323,127.25,127.24,31.92]
[1742388717413,7.8597,127.24,127.23,0.05155529]
[1742388717706,7.8597,127.24,127.23,31.95155529]
[1742388718297,7.8597,127.24,127.23,44.77284089]
[1742388718908,7.8597,127.24,127.23,31.95155529]
[1742388719505,7.91770323,127.25,127.23,31.95155529]
[1742388721513,7.8597,127.24,127.23,31.95155529]
[1742388722308,7.8597,127.24,127.23,44.77284089]
[1742388722498,7.8597,127.24,127.23,0.05155529]
[1742388722703,7.8597,127.24,127.23,31.95155529]
[1742388724312,7.91780323,127.25,127.23,52.63324089]
[1742388724705,7.91780323,127.25,127.23,44.77284089]
[1742388725016,0.05830323,127.25,127.24,12.8212856]
[1742388725316,0.05830323,127.25,127.24,20.6809856]
[1742388727202,7.91740323,127.25,127.23,39.81155529]
[1742388727411,0.05830323,127.25,127.24,12.8212856]
[1742388728607,0.05830323,127.25,127.24,20.6809856]
[1742388730705,0.05830323,127.25,127.23,31.95155529]
[1742388730904,0.05830323,127.25,127.23,44.77284089]
[1742388731210,7.8597,127.24,127.23,44.77284089]
[1742388731408,0.05830323,127.25,127.23,44.77284089]
[1742388731810,0.05830323,127.25,127.23,31.95155529]
[1742388732414,7.8597,127.24,127.23,31.95155529]
[1742388732821,0.05830323,127.25,127.23,31.95155529]
[1742388732822,0.05830323,127.25,127.23,44.77284089]
[1742388733110,7.8597,127.24,127.23,44.77284089]
[1742388734214,7.8597,127.24,127.23,0.05155529]
[1742388734515,52.5612856,127.24,127.16,31.88]
[1742388734711,12.8212856,127.19,127.16,31.88]
[1742388735107,7.8646,127.17,127.16,31.88]
[1742388735304,12.8212856,127.2,127.16,31.88]
[1742388735507,7.91365082,127.18,127.16,44.7012856]
[1742388735712,7.8639,127.18,127.16,44.7012856]
[1742388735913,0.04988994,127.18,127.16,44.76031412]
[1742388736210,0.04988994,127.18,127.16,52.62491412]
[1742388736916,7.91358994,127.18,127.16,44.76031412]
[1742388737220,0.04988994,127.18,127.16,44.76031412]
[1742388737715,7.8641,127.17,127.16,44.76031412]
[1742388738015,0.04988994,127.18,127.16,52.62501412]
[1742388738315,7.91368994,127.18,127.16,52.62501412]
[1742388738512,7.91368994,127.18,127.17,12.8212856]
[1742388738712,7.91368994,127.18,127.16,44.76031412]
[1742388738912,7.8641,127.17,127.16,31.93902852]
[1742388740415,7.8641,127.17,127.16,0.05902852]
[1742388740616,7.8641,127.17,127.16,31.93902852]
[1742388741218,0.04988994,127.18,127.16,31.93902852]
[1742388741219,7.91368994,127.18,127.16,31.93902852]
[1742388742718,7.91368994,127.18,127.16,44.76031412]
[1742388744516,7.91368994,127.18,127.17,12.8212856]
[1742388745718,7.8641,127.17,127.16,44.76031412]
[1742388746019,0.04988994,127.18,127.16,44.76031412]
[1742388746417,7.91358994,127.18,127.16,52.62501412]
[1742388747321,0.04988994,127.18,127.17,12.8212856]
[1742388752519,0.04988994,127.18,127.17,20.6853856]
[1742388754520,0.04988994,127.18,127.17,12.8212856]
[1742388754725,0.04988994,127.18,127.16,44.76031412]
[1742388754925,7.91358994,127.18,127.16,31.93902852]
[1742388755837,7.8641,127.17,127.16,31.93902852]
[1742388757339,7.8641,127.17,127.16,44.76031412]
[1742388757535,7.8641,127.17,127.16,0.05902852]
[1742388757742,7.8658,127.15,127.13,12.8212856]
[1742388757942,7.8658,127.15,127.14,31.86]
[1742388758335,7.8658,127.15,127.14,44.6812856]
[1742388760246,7.92303686,127.16,127.14,44.6812856]
[1742388760734,7.8653,127.15,127.14,31.86]
[1742388761335,7.8659,127.14,127.13,0.05325813]
[1742388761541,7.8659,127.14,127.13,31.91325813]
[1742388762441,7.8659,127.14,127.13,0.05325813]
[1742388764745,7.8659,127.14,127.13,31.91325813]
[1742388765442,7.8656,127.15,127.13,31.91325813]
[1742388765949,7.8656,127.15,127.13,39.77975813]
[1742388766142,7.8659,127.14,127.13,31.91325813]
[1742388768950,0.05803686,127.16,127.13,44.73454373]
[1742388769147,0.05803686,127.16,127.14,12.8212856]
[1742388769348,0.05803686,127.16,127.13,44.73454373]
[1742388769548,7.8659,127.14,127.13,31.91325813]
[1742388771141,7.8659,127.14,127.13,0.05325813]
[1742388771352,20.6871856,127.14,127.13,0.05325813]
[1742388772652,7.8659,127.14,127.13,0.05325813]
[1742388773150,20.6871856,127.14,127.13,0.05325813]
[1742388773349,20.6812856,127.14,127.07,284.0612856]
[1742388773549,12.8212856,127.12,127.09,31.84]
[1742388774249,12.8212856,127.12,127.08,31.84]
[1742388774451,12.8212856,127.12,127.09,0.04960892]
[1742388774452,12.87162326,127.12,127.09,0.04960892]
[1742388775155,7.8678,127.11,127.09,0.04960892]
[1742388775854,0.05033766,127.12,127.09,0.04960892]
[1742388776352,7.8681,127.11,127.09,0.04960892]
[1742388777454,7.91783766,127.12,127.09,20.73979452]
[1742388777649,0.05033766,127.12,127.11,12.8212856]
[1742388777851,0.05033766,127.12,127.11,52.5290856]
[1742388778048,0.05033766,127.12,127.11,44.6612856]
[1742388778650,15.1032856,127.17,127.11,44.6612856]
[1742388778857,15.1032856,127.17,127.13,20.6874856]
[1742388779156,12.8212856,127.16,127.12,12.8212856]
[1742388779349,12.8212856,127.16,127.11,44.6612856]
[1742388779549,2.282,127.17,127.13,12.8212856]
[1742388779755,7.8638,127.18,127.15,7.8648]
[1742388779964,0.0521354,127.16,127.14,44.6612856]
[1742388780149,0.0521354,127.16,127.15,0.05568664]
[1742388780550,0.0521354,127.16,127.15,7.92088664]
[1742388780746,0.0521354,127.16,127.15,20.74217224]
[1742388784046,17.1247856,127.23,127.18,7.8634]
[1742388784254,17.1247856,127.23,127.19,31.84]
[1742388784455,7.8621,127.21,127.19,31.84]
[1742388784655,17.1247856,127.23,127.19,31.84]
[1742388785159,7.8622,127.2,127.19,31.84]
[1742388785359,0.05329972,127.22,127.19,31.84]
[1742388785656,12.87458532,127.22,127.19,31.84]
[1742388785958,7.8622,127.2,127.19,31.84]
[1742388786558,7.8628,127.19,127.18,0.05164842]
[1742388788549,20.6840856,127.19,127.18,0.05164842]
[1742388790157,7.8628,127.19,127.18,0.05164842]
[1742388790860,20.6840856,127.19,127.18,4.842e-05]
[1742388791059,0.05329972,127.22,127.18,38.23069122]
[1742388791256,117.32470503,127.27,127.21,12.8212856]
[1742388791456,85.44355257,127.26,127.25,12.8212856]
[1742388791658,85.44355257,127.26,127.25,31.82]
[1742388792565,85.44355257,127.26,127.25,52.5003856]
[1742388793169,85.44355257,127.26,127.25,39.6791]
[1742388793559,85.44355257,127.26,127.25,31.82]
[1742388793968,7.9132578,127.27,127.25,31.82]
[1742388794667,0.0552578,127.27,127.25,31.82]
[1742388795262,7.9135578,127.27,127.25,31.82]
[1742388797366,7.8585,127.26,127.25,31.82]
[1742388798365,7.9134578,127.27,127.25,31.82]
[1742388798766,0.0552578,127.27,127.25,31.82]
[1742388798966,0.0552578,127.27,127.25,51.82275434]
[1742388799270,0.0552578,127.27,127.26,7.8585]
[1742388801570,0.0552578,127.27,127.25,64.17035434]
[1742388803071,0.0552578,127.27,127.25,61.89205434]
[1742388804078,0.0552578,127.27,127.25,54.03325434]
[1742388804275,0.0552578,127.27,127.24,0.05350927]
[1742388804473,0.0552578,127.27,127.26,31.78]
[1742388804972,7.9134578,127.27,127.26,31.78]
[1742388805465,7.8588,127.26,127.24,0.05350927]
[1742388805678,0.0552578,127.27,127.25,31.78]
[1742388806270,7.8585,127.26,127.25,31.78]
[1742388806471,0.0552578,127.27,127.24,31.83350927]
[1742388806866,7.8591,127.25,127.24,31.83350927]
[1742388808075,7.8588,127.26,127.24,31.83350927]
[1742388809078,7.8588,127.26,127.24,39.69310927]
[1742388809577,7.8588,127.26,127.24,31.83350927]
[1742388809777,7.8591,127.25,127.24,31.83350927]
[1742388810976,7.8588,127.26,127.24,31.83350927]
[1742388811577,7.8588,127.26,127.24,39.69310927]
[1742388813179,0.0552578,127.27,127.24,51.83626361]
[1742388813576,0.0552578,127.27,127.26,20.00275434]
[1742388813777,0.0552578,127.27,127.26,27.86125434]
[1742388814382,7.856,127.31,127.29,7.8564]
[1742388814582,7.856,127.31,127.3,31.76]
[1742388823787,0.05361398,127.32,127.29,0.05937848]
[1742388824088,20.05636832,127.32,127.29,0.05937848]
[1742388824289,0.05361398,127.32,127.29,0.05937848]
[1742388826988,7.856,127.3,127.29,0.05937848]
[1742388828087,7.856,127.3,127.29,12.85814462]
[1742388828886,7.8558,127.31,127.29,12.85814462]
[1742388829691,0.05361398,127.32,127.29,12.85814462]
[1742388832193,7.8557,127.31,127.29,20.71464462]
[1742388832895,7.8557,127.31,127.29,12.85814462]
[1742388833393,0.05361398,127.32,127.29,12.85814462]
[1742388833796,12.85238012,127.32,127.29,0.05937848]
[1742388834894,7.856,127.3,127.29,0.05937848]
[1742388838301,20.65476614,127.3,127.29,7.848e-05]
[1742388843605,7.856,127.3,127.29,7.848e-05]
[1742388846104,7.8557,127.31,127.29,12.79884462]
[1742388846298,0.05361398,127.32,127.3,12.79876614]
[1742388847005,7.90871398,127.32,127.3,20.65456614]
[1742388848713,0.05361398,127.32,127.31,39.5754]
[1742388848911,0.05361398,127.32,127.31,52.37416614]
[1742388850214,0.05361398,127.32,127.31,44.51876614]
[1742388851013,7.90841398,127.32,127.31,44.51876614]
[1742388851316,0.05361398,127.32,127.31,44.51876614]
[1742388851814,7.90841398,127.32,127.31,44.51876614]
[1742388852407,7.90841398,127.32,127.31,31.72]
[1742388854715,7.856,127.3,127.29,12.79884462]
[1742388854915,7.856,127.3,127.29,44.51884462]
[1742388859230,7.8557,127.31,127.29,44.51884462]
[1742388859523,0.05361398,127.32,127.3,12.79876614]
[1742388859726,0.05361398,127.32,127.31,12.79876614]
[1742388860123,7.90841398,127.32,127.31,12.79876614]
[1742388860917,7.8555,127.31,127.3,12.79876614]
[1742388861623,7.90871398,127.32,127.3,12.79876614]
[1742388862327,7.8554,127.31,127.3,12.79876614]
[1742388863629,7.90871398,127.32,127.3,20.65476614]
[1742388863927,7.90871398,127.32,127.31,12.79876614]
[1742388864330,0.05361398,127.32,127.31,20.65416614]
[1742388864730,0.05361398,127.32,127.31,12.79876614]
[1742388864930,7.90841398,127.32,127.31,12.79876614]
[1742388865527,7.8559,127.31,127.3,12.79876614]
[1742388868833,0.05361398,127.32,127.29,7.848e-05]
[1742388869532,0.05361398,127.32,127.29,31.70007848]
[1742388870026,0.05361398,127.32,127.29,7.848e-05]
[1742388870236,0.05361398,127.32,127.29,31.70007848]
[1742388870727,12.79876614,127.31,127.29,7.848e-05]
[1742388870932,12.79876614,127.3,127.29,7.848e-05]
[1742388871123,20.65476614,127.3,127.29,7.848e-05]
[1742388878132,7.856,127.3,127.29,7.848e-05]
[1742388880343,20.65476614,127.3,127.29,7.848e-05]
[1742388880547,20.65876614,127.3,127.22,33.8012]
[1742388880745,12.79876614,127.27,127.22,52.33936614]
[1742388880944,12.79876614,127.26,127.22,31.68]
[1742388881145,7.8595,127.25,127.22,44.47876614]
[1742388881349,7.8595,127.25,127.22,52.33966614]
[1742388881744,7.91548953,127.25,127.22,52.39771934]
[1742388882144,7.8598,127.24,127.22,52.39771934]
[1742388882343,0.05598953,127.25,127.23,7.8603]
[1742388882544,0.05598953,127.25,127.24,12.79876614]
[1742388883047,0.05598953,127.25,127.24,20.65846614]
[1742388884753,0.05598953,127.25,127.24,12.79876614]
[1742388885251,0.05598953,127.25,127.22,0.0580532]
[1742388885656,7.86,127.24,127.22,12.85681934]
[1742388885856,0.05598953,127.25,127.22,20.71751934]
[1742388886348,7.91568953,127.25,127.23,12.79876614]
[1742388886855,7.8597,127.24,127.23,12.79876614]
[1742388887359,7.8597,127.24,127.23,31.68]
[1742388888160,7.91538953,127.25,127.23,44.47876614]
[1742388889056,7.91538953,127.25,127.23,52.33916614]
[1742388891460,7.91538953,127.25,127.23,44.47876614]
[1742388891859,7.8597,127.24,127.23,44.47876614]
[1742388892063,7.8597,127.24,127.23,31.68]
[1742388892863,7.8604,127.23,127.22,44.53681934]
[1742388893264,7.8604,127.23,127.22,31.7380532]
[1742388895868,7.8604,127.23,127.22,0.0580532]
[1742388897266,7.8619,127.21,127.19,12.79876614]
[1742388897467,7.8619,127.21,127.19,44.47876614]
[1742388898169,7.8619,127.21,127.19,12.79876614]
[1742388898368,12.79876614,127.24,127.19,44.47876614]
[1742388898572,0.05871679,127.21,127.19,44.53514354]
[1742388898870,7.92061679,127.21,127.19,31.7363774]
[1742388901170,7.92061679,127.21,127.19,39.5991774]
[1742388901367,0.05871679,127.21,127.19,39.5991774]
[1742388901672,0.05871679,127.21,127.19,31.7363774]
[1742388902262,7.92061679,127.21,127.19,31.7363774]
[1742388902971,7.8622,127.2,127.19,31.7363774]
[1742388903471,12.79876614,127.2,127.14,2.1398]
[1742388903667,7.8643,127.17,127.15,31.68]
[1742388903875,7.8643,127.17,127.14,14.93856614]
[1742388904172,7.8643,127.17,127.14,39.5456]
[1742388904376,12.79876614,127.18,127.14,31.68]
[1742388904571,12.79876614,127.18,127.14,39.5456]
[1742388904769,0.05473284,127.17,127.15,0.04964954]
[1742388904975,7.8647,127.16,127.15,0.04964954]
[1742388905472,7.91903284,127.17,127.15,0.04964954]
[1742388905671,0.05473284,127.17,127.15,0.04964954]
[1742388906177,7.8647,127.16,127.15,0.04964954]
[1742388906374,0.05473284,127.17,127.15,0.04964954]
[1742388907070,7.91883284,127.17,127.15,0.04964954]
[1742388908064,7.91883284,127.17,127.15,12.84841568]
[1742388908065,0.05473284,127.17,127.15,12.84841568]
[1742388908271,0.05473284,127.17,127.16,12.79876614]
[1742388908775,0.05473284,127.17,127.15,12.84841568]
[1742388909376,0.05473284,127.17,127.16,7.8647]
[1742388910578,0.05473284,127.17,127.16,20.66346614]
[1742388911080,12.79876614,127.22,127.18,7.8628]
[1742388911274,12.79876614,127.22,127.18,20.66156614]
[1742388911773,7.8622,127.21,127.18,20.66156614]
[1742388912179,7.91783626,127.21,127.19,7.8627]
[1742388913779,7.91783626,127.21,127.18,20.71890982]
[1742388914277,7.91783626,127.21,127.18,12.85580982]
[1742388915178,7.91783626,127.21,127.18,20.71870982]
[1742388915579,7.91783626,127.21,127.18,12.85580982]
[1742388915778,7.91783626,127.21,127.19,7.8624]
[1742388916577,0.05563626,127.21,127.19,7.8624]
[1742388918676,0.05563626,127.21,127.19,12.79876614]
[1742388918884,0.05563626,127.21,127.2,31.66]
[1742388919085,0.05563626,127.21,127.2,44.45876614]
[1742388919486,0.05563626,127.21,127.2,52.32096614]
[1742388920581,0.05563626,127.21,127.2,31.66]
[1742388920781,7.91723626,127.21,127.2,31.66]
[1742388928890,7.8628,127.19,127.18,0.05704368]
[1742388930192,20.66156614,127.19,127.18,0.05704368]
[1742388930590,20.66156614,127.19,127.13,12.79876614]
[1742388930591,12.79876614,127.19,127.13,12.79876614]
[1742388930793,12.79876614,127.17,127.14,31.64]
[1742388930990,7.8647,127.16,127.14,31.64]
[1742388931392,12.79876614,127.19,127.14,44.43876614]
[1742388931592,12.79876614,127.2,127.16,20.66346614]
[1742388931789,0.05426731,127.18,127.16,20.66346614]
[1742388932094,7.91796731,127.18,127.16,20.66346614]
[1742388932293,7.91796731,127.18,127.15,20.72244527]
[1742388933592,0.05426731,127.18,127.16,7.8645]
[1742388934998,7.91786731,127.18,127.16,7.8645]
[1742388935195,7.91786731,127.18,127.15,20.72244527]
[1742388935403,149.79871409,127.26,127.17,12.79876614]
[1742388935595,128.16532885,127.26,127.22,12.79876614]
[1742388935899,128.16532885,127.26,127.23,20.65916614]
[1742388936598,85.49919826,127.25,127.23,20.65916614]
[1742388937298,117.56598029,127.24,127.23,20.65916614]
[1742388937795,117.56598029,127.24,127.23,7.8604]
[1742388937995,117.56598029,127.24,127.23,20.65916614]
[1742388939297,32.12242772,127.24,127.23,20.65916614]
[1742388939501,0.05564569,127.25,127.23,20.65916614]
[1742388940495,7.91484569,127.25,127.23,12.79876614]
[1742388940699,0.05564569,127.25,127.23,12.79876614]
[1742388941209,44.41876614,127.24,127.11,56.82971378]
[1742388941398,12.79876614,127.18,127.14,12.79876614]
[1742388941798,20.66266614,127.18,127.14,12.79876614]
[1742388942097,7.8639,127.18,127.14,12.79876614]
[1742388942298,7.8639,127.18,127.15,12.79876614]
[1742388942502,0.05755065,127.17,127.16,31.62]
[1742388942800,0.05755065,127.17,127.16,44.41876614]
[1742388943400,0.05755065,127.17,127.16,52.28346614]
[1742388945204,0.05755065,127.17,127.16,31.62]
[1742388946499,0.05755065,127.17,127.16,39.4847]
[1742388948709,0.05755065,127.17,127.16,31.62]
[1742388952606,0.05755065,127.17,127.16,39.4847]
[1742388959007,0.05755065,127.17,127.16,31.6]
[1742388960009,7.92185065,127.17,127.16,31.6]
[1742388960207,0.05755065,127.17,127.16,31.6]
[1742388960904,0.05755065,127.17,127.15,7.9153758]
[1742388961101,7.92165065,127.17,127.16,31.6]
[1742388961302,0.05755065,127.17,127.16,31.6]
[1742388962110,0.05755065,127.17,127.16,39.4647]
[1742388962314,0.05755065,127.17,127.16,31.6]
[1742388962617,7.92165065,127.17,127.16,31.6]
[1742388963011,0.05755065,127.17,127.15,0.0502758]
[1742388963209,0.05755065,127.17,127.15,31.6502758]
[1742388964619,0.05755065,127.17,127.15,39.5144758]
[1742388966917,7.92105065,127.17,127.15,31.6502758]
[1742388967808,7.92105065,127.17,127.15,39.5146758]
[1742388969819,7.8639,127.16,127.15,31.6502758]
[1742388970021,0.05755065,127.17,127.15,31.6502758]
[1742388971114,0.05755065,127.17,127.15,39.5145758]
[1742388971814,0.05755065,127.17,127.16,7.8639]
[1742388974222,0.05755065,127.17,127.15,39.5143758]
[1742388974416,0.05755065,127.17,127.15,31.6502758]
[1742388974815,0.05755065,127.17,127.16,7.8639]
[1742388975016,7.92085065,127.17,127.15,31.6502758]
[1742388975820,7.92085065,127.17,127.15,39.5143758]
[1742388976919,42.84339533,127.25,127.17,23.58]
[1742388977112,267.01110178,127.28,127.24,12.82400562]
[1742388977315,272.72798506,127.27,127.26,12.82400562]
[1742388977522,272.72798506,127.27,127.26,52.26170562]
[1742388978526,295.01004311,127.27,127.26,52.26170562]
[1742388979220,295.01004311,127.27,127.26,39.4377]
[1742388981432,0.05242913,127.28,127.27,7.8571]
[1742388998349,2.913e-05,127.28,127.27,7.8571]
[1742388999346,2.913e-05,127.28,127.27,20.64962422]
[1742389001750,19.15212422,127.35,127.31,7.8542]
[1742389001952,6.39626211,127.34,127.32,31.52]
[1742389002244,12.79252422,127.34,127.32,31.52]
[1742389003049,7.8534,127.33,127.32,31.57562392]
[1742389003751,20.64592422,127.33,127.32,31.57562392]
[1742389007558,7.8534,127.33,127.32,31.57562392]
[1742389009355,20.69989239,127.34,127.32,31.57562392]
[1742389009754,7.8534,127.33,127.32,31.57562392]
[1742389014860,20.69989239,127.34,127.32,39.42962392]
[1742389015256,0.05426817,127.34,127.32,31.57562392]
[1742389015554,0.05426817,127.34,127.33,7.8534]
[1742389017260,0.05426817,127.34,127.32,39.42932392]
[1742389017854,7.90716817,127.34,127.32,39.42932392]
[1742389018059,0.05426817,127.34,127.32,31.57562392]
[1742389019561,7.8534,127.33,127.32,31.57562392]
[1742389022459,7.90726817,127.34,127.32,39.42962392]
[1742389022765,7.90726817,127.34,127.32,52.22214814]
[1742389023468,0.05426817,127.34,127.33,7.8534]
[1742389023662,0.05426817,127.34,127.33,20.64592422]
[1742389024365,2.1917,127.39,127.37,7.8506]
[1742389024560,2.1917,127.39,127.38,31.48]
[1742389024766,10.0419,127.39,127.38,31.48]
[1742389024962,2.1917,127.39,127.38,31.48]
[1742389025160,7.8492,127.4,127.38,39.3303]
[1742389025564,7.9049233,127.4,127.38,39.38049795]
[1742389025766,7.9049233,127.4,127.38,31.53019795]
[1742389026772,0.0557233,127.4,127.38,44.32272217]
[1742389027766,0.0557233,127.4,127.39,12.79252422]
[1742389028164,0.0557233,127.4,127.39,20.64222422]
[1742389028967,4.2128,127.45,127.42,7.8473]
[1742389029174,4.2128,127.45,127.43,31.46]
[1742389029468,12.0591,127.45,127.43,39.3072]